bitfinex-derivatives/quotes_BNBF0:USTF0_20250507
["timestamp","ask_amount","ask_price","bid_price","bid_amount"]
[1746613002577,1.00043124,605.44,604.89,0.624]
[1746613003377,1.00043124,605.43,604.89,0.624]
[1746613004071,1.00043124,605.42,604.89,0.624]
[1746613004477,1.00043124,605.41,604.89,0.624]
[1746613004776,1.00043124,605.4,604.89,0.624]
[1746613005277,1.00043124,605.39,604.89,0.624]
[1746613005876,1.00043124,605.38,604.89,0.624]
[1746613006276,0.28754984,605.58,604.89,0.624]
[1746613006277,1.00043124,605.37,604.89,0.624]
[1746613006677,1.00043124,605.36,604.89,0.624]
[1746613006873,1.00043124,605.35,604.89,0.624]
[1746613007377,1.00043124,605.34,604.89,0.624]
[1746613008171,1.00043124,605.33,604.89,0.624]
[1746613008476,1.00043124,605.32,604.89,0.624]
[1746613009378,1.00043124,605.31,604.89,0.624]
[1746613009677,1.00043124,605.3,604.89,0.624]
[1746613009978,1.00043124,605.29,604.89,0.624]
[1746613010978,1.00043124,605.28,604.89,0.624]
[1746613011776,1.00043124,605.27,604.89,0.624]
[1746613011978,1.00043124,605.26,604.89,0.624]
[1746613012578,1.00043124,605.25,604.89,0.624]
[1746613013178,1.00043124,605.24,604.89,0.624]
[1746613013581,1.00043124,605.23,604.89,0.624]
[1746613014180,1.00043124,605.22,604.89,0.624]
[1746613014580,1.00043124,605.21,604.89,0.624]
[1746613014981,1.00043124,605.21,604.86,0.33065502]
[1746613015183,1.00043124,605.2,604.86,0.33065502]
[1746613015882,1.00043124,605.19,604.86,0.33065502]
[1746613016678,1.00043124,605.18,604.86,0.33065502]
[1746613017483,1.00043124,605.17,604.86,0.33065502]
[1746613018382,1.00043124,605.16,604.86,0.33065502]
[1746613018784,1.00043124,605.15,604.86,0.33065502]
[1746613019583,1.00043124,605.14,604.86,0.33065502]
[1746613019983,1.00043124,605.13,604.86,0.33065502]
[1746613020485,0.33004389,605.98,604.86,0.33065502]
[1746613020486,1.00043124,605.12,604.86,0.33065502]
[1746613020880,1.00043124,605.11,604.86,0.33065502]
[1746613021079,1.00043124,605.1,604.86,0.33065502]
[1746613021585,1.00043124,605.09,604.86,0.33065502]
[1746613022184,1.00043124,605.08,604.86,0.33065502]
[1746613022585,1.00043124,605.07,604.86,0.33065502]
[1746613022784,1.00043124,605.06,604.86,0.33065502]
[1746613023583,1.00043124,605.05,604.86,0.33065502]
[1746613024083,1.00043124,605.04,604.86,0.33065502]
[1746613024689,1.00043124,605.03,604.86,0.33065502]
[1746613025484,1.00043124,605.02,604.86,0.33065502]
[1746613025989,1.00043124,605.01,604.86,0.33065502]
[1746613026396,1.00043124,605.0,604.86,0.33065502]
[1746613026794,1.00043124,604.99,604.86,0.33065502]
[1746613027395,1.00043124,604.98,604.86,0.33065502]
[1746613028095,0.33004389,605.98,604.86,0.33065502]
[1746613028291,0.28761757,605.55,604.86,0.33065502]
[1746613028695,0.33004389,605.98,604.86,0.33065502]
[1746613028897,1.30529676,605.97,604.86,0.33065502]
[1746613029093,0.30368591,605.96,604.86,0.33065502]
[1746613029295,1.00161085,605.95,604.86,0.33065502]
[1746613029492,0.30368591,605.94,604.86,0.33065502]
[1746613029791,1.00161085,605.93,604.86,0.33065502]
[1746613029996,0.30368591,605.92,604.86,0.33065502]
[1746613030196,1.00161085,605.91,604.86,0.33065502]
[1746613030391,0.30368591,605.9,604.86,0.33065502]
[1746613030791,1.00161085,605.91,604.86,0.33065502]
[1746613030997,1.30529501,605.9,604.86,0.33065502]
[1746613031196,0.30368416,605.89,604.86,0.33065502]
[1746613031591,1.00161085,605.88,604.86,0.33065502]
[1746613031892,0.30368416,605.87,604.86,0.33065502]
[1746613032391,1.00161085,605.86,604.86,0.33065502]
[1746613032796,0.30368414,605.85,604.87,0.543]
[1746613033008,1.00161085,605.84,604.87,0.543]
[1746613033197,0.30368414,605.83,604.87,0.543]
[1746613033697,1.00161085,605.82,604.87,0.543]
[1746613033898,0.30368414,605.81,604.87,0.543]
[1746613034096,1.30529499,605.81,604.87,0.543]
[1746613034295,1.30529499,605.8,604.87,0.543]
[1746613034494,0.30368414,605.79,604.87,0.543]
[1746613034694,1.00161085,605.78,604.87,0.543]
[1746613034896,0.30368414,605.77,604.87,0.543]
[1746613035193,1.00161085,605.76,604.87,0.543]
[1746613035398,0.30368414,605.75,604.87,0.543]
[1746613035591,1.00161085,605.74,604.87,0.543]
[1746613035792,0.30368414,605.73,604.87,0.543]
[1746613036099,1.00161085,605.72,604.87,0.543]
[1746613036403,0.30368414,605.71,604.87,0.543]
[1746613036598,1.30529499,605.71,604.87,0.543]
[1746613036798,0.30368414,605.7,604.87,0.543]
[1746613037093,1.00161085,605.69,604.87,0.543]
[1746613037298,0.30368414,605.68,604.87,0.543]
[1746613037499,1.00161085,605.67,604.87,0.543]
[1746613037799,1.00161085,605.66,604.87,0.543]
[1746613038099,1.30529499,605.66,604.87,0.543]
[1746613038299,1.00161085,605.65,604.87,0.543]
[1746613038497,1.30529499,605.65,604.87,0.543]
[1746613038703,1.00161085,605.64,604.87,0.543]
[1746613039001,1.00161085,605.63,604.87,0.543]
[1746613039202,1.30529499,605.63,604.87,0.543]
[1746613039398,1.30529499,605.62,604.87,0.543]
[1746613039801,1.00161085,605.61,604.87,0.543]
[1746613040002,1.30529499,605.61,604.87,0.543]
[1746613040203,1.00161085,605.6,604.87,0.543]
[1746613040503,1.28914999,605.6,604.87,0.543]
[1746613040704,1.00161085,605.59,604.87,0.543]
[1746613041003,1.00161085,605.58,604.87,0.543]
[1746613041705,1.00161085,605.57,604.87,0.543]
[1746613042003,1.00161085,605.56,604.87,0.543]
[1746613043304,1.00161085,605.55,604.87,0.543]
[1746613043502,1.00161085,605.54,604.87,0.543]
[1746613044005,1.00161085,605.53,604.87,0.543]
[1746613044407,1.00161085,605.52,604.87,0.543]
[1746613044702,1.00161085,605.51,604.88,0.635]
[1746613045107,1.00161085,605.5,604.88,0.635]
[1746613045608,1.00161085,605.49,604.88,0.635]
[1746613046310,1.00161085,605.48,604.88,0.635]
[1746613046911,1.00161085,605.47,604.88,0.635]
[1746613047206,1.00161085,605.46,604.88,0.635]
[1746613047909,1.00161085,605.45,604.88,0.635]
[1746613048607,1.00161085,605.44,604.88,0.635]
[1746613049007,1.00161085,605.43,604.88,0.635]
[1746613049412,1.00134968,605.42,604.88,0.635]
[1746613050015,1.00134968,605.41,604.88,0.635]
[1746613050714,1.00134968,605.4,604.88,1.134]
[1746613051315,1.00134968,605.39,604.88,1.134]
[1746613051816,1.00134968,605.38,604.88,1.134]
[1746613052820,1.00134968,605.37,604.88,1.134]
[1746613053617,1.00134968,605.36,604.88,1.134]
[1746613054017,1.00134968,605.35,604.88,1.134]
[1746613054722,1.00134968,605.34,604.88,1.134]
[1746613055322,1.00134968,605.33,604.88,1.134]
[1746613055922,1.00134968,605.32,604.88,1.134]
[1746613056521,1.00134968,605.31,604.88,1.134]
[1746613057122,1.00134968,605.3,604.88,1.134]
[1746613057623,1.00134968,605.29,604.88,1.134]
[1746613058024,1.00134968,605.28,604.88,1.134]
[1746613058424,1.00134968,605.27,604.88,1.134]
[1746613059024,1.00134968,605.26,604.88,1.134]
[1746613059525,1.00134968,605.25,604.88,1.134]
[1746613059827,1.00134968,605.24,604.88,1.134]
[1746613060423,1.00134968,605.23,604.88,1.134]
[1746613060828,1.00134968,605.22,604.88,1.134]
[1746613061221,1.00134968,605.21,604.88,1.134]
[1746613062027,1.00134968,605.2,604.88,1.134]
[1746613062231,1.00134968,605.19,604.88,1.134]
[1746613062733,1.00134968,605.18,604.88,1.134]
[1746613063629,1.00134968,605.17,604.88,1.134]
[1746613064229,1.00134968,605.16,604.88,1.134]
[1746613064429,1.00134968,605.15,604.88,1.134]
[1746613065129,1.00134968,605.14,604.88,1.134]
[1746613065528,1.00134968,605.13,604.88,1.134]
[1746613066133,1.00134968,605.12,604.88,1.134]
[1746613066434,1.00134968,605.11,604.88,1.134]
[1746613066734,1.00134968,605.1,604.88,1.134]
[1746613067430,1.00134968,605.09,604.88,1.134]
[1746613067830,1.00134968,605.08,604.88,1.134]
[1746613068130,1.00134968,605.07,604.88,1.134]
[1746613068535,1.00134968,605.06,604.88,1.134]
[1746613069035,1.00134968,605.05,604.88,1.134]
[1746613069436,1.00134968,605.04,604.88,1.134]
[1746613069836,0.28758073,605.62,604.88,1.134]
[1746613070039,0.33004389,605.98,604.88,1.134]
[1746613070339,0.3036449,605.97,604.88,1.134]
[1746613070638,1.00198761,605.96,604.88,1.134]
[1746613070837,1.00198761,605.96,604.88,0.499]
[1746613071034,0.3036449,605.95,604.88,0.499]
[1746613071238,1.30563251,605.95,604.88,0.499]
[1746613071434,1.30563251,605.94,604.88,0.499]
[1746613071837,1.30563251,605.93,604.88,0.499]
[1746613072137,1.00198761,605.93,604.88,0.499]
[1746613072338,0.30364444,605.92,604.88,0.499]
[1746613072638,1.00198761,605.91,604.88,0.499]
[1746613072839,1.00198761,605.9,604.88,0.499]
[1746613073231,1.30563205,605.9,604.88,0.499]
[1746613073434,1.59312012,605.89,604.88,0.499]
[1746613073737,0.30364444,605.88,604.88,0.499]
[1746613073937,1.30563205,605.88,604.88,0.499]
[1746613074437,1.30563205,605.87,604.88,0.499]
[1746613074737,0.30364444,605.86,604.88,0.499]
[1746613074939,0.30364444,605.86,604.89,0.629]
[1746613075238,1.00198761,605.85,604.89,0.629]
[1746613075538,1.30563205,605.84,604.89,0.629]
[1746613075740,0.30364444,605.83,604.89,0.629]
[1746613076235,1.00198761,605.82,604.89,0.629]
[1746613076436,1.28947925,605.82,604.89,0.629]
[1746613076740,1.30563205,605.81,604.89,0.629]
[1746613076940,0.30364444,605.8,604.89,0.629]
[1746613077141,1.00172278,605.79,604.89,0.629]
[1746613077540,1.00172278,605.78,604.89,0.629]
[1746613077739,1.30536722,605.78,604.89,0.629]
[1746613077939,1.30536722,605.77,604.89,0.629]
[1746613078240,1.30536722,605.76,604.89,0.629]
[1746613078441,0.30364444,605.75,604.89,0.629]
[1746613078638,1.00172278,605.74,604.89,0.629]
[1746613078838,0.30364444,605.73,604.89,0.629]
[1746613079035,1.00172278,605.72,604.89,0.629]
[1746613079441,0.59115033,605.71,604.89,0.629]
[1746613079643,1.00172278,605.7,604.89,0.629]
[1746613079836,1.30536722,605.7,604.89,0.629]
[1746613080141,0.30364444,605.69,604.89,0.629]
[1746613080342,1.00172278,605.68,604.89,0.629]
[1746613080644,0.30364444,605.67,604.89,0.629]
[1746613080943,1.00172278,605.66,604.89,0.629]
[1746613081444,1.30536722,605.65,604.89,0.629]
[1746613081645,0.30364444,605.64,604.89,0.629]
[1746613081839,1.00172278,605.63,604.89,0.629]
[1746613082343,1.30536722,605.62,604.89,0.629]
[1746613082744,1.5928838,605.62,604.89,0.629]
[1746613083043,1.30536722,605.61,604.89,0.629]
[1746613083245,1.00172278,605.6,604.89,0.629]
[1746613083445,1.30536722,605.6,604.89,0.629]
[1746613083747,0.30364444,605.59,604.89,0.629]
[1746613083942,1.00172278,605.58,604.89,0.629]
[1746613084447,1.30536722,605.57,604.89,0.629]
[1746613084647,1.00172278,605.57,604.89,0.629]
[1746613085249,1.00172278,605.56,604.89,0.629]
[1746613085449,1.00172278,605.55,604.89,0.629]
[1746613086052,1.00172278,605.54,604.89,0.629]
[1746613086549,1.00172278,605.53,604.9,0.488]
[1746613086844,1.00172278,605.52,604.9,0.488]
[1746613087249,1.00172278,605.51,604.9,1.038]
[1746613087548,1.00172278,605.5,604.9,1.617]
[1746613087848,1.00172278,605.49,604.9,1.617]
[1746613088349,1.00172278,605.48,604.9,1.617]
[1746613088548,1.00172278,605.47,604.9,1.617]
[1746613089049,1.00172278,605.46,604.9,1.617]
[1746613089348,1.00172278,605.45,604.9,1.617]
[1746613089649,1.00172278,605.44,604.9,1.617]
[1746613090250,1.00172278,605.43,604.9,1.617]
[1746613090751,1.00172278,605.42,604.9,1.617]
[1746613091251,1.00172278,605.41,604.9,1.617]
[1746613091551,1.00172278,605.4,604.9,1.617]
[1746613092651,1.00172278,605.39,604.9,1.617]
[1746613093048,1.00172278,605.38,604.9,1.617]
[1746613093545,1.00172278,605.37,604.9,1.617]
[1746613093851,1.00172278,605.36,604.9,1.617]
[1746613094352,1.00172278,605.35,604.9,1.617]
[1746613094852,1.00172278,605.34,604.9,1.617]
[1746613095450,1.00172278,605.33,604.9,1.617]
[1746613095955,1.00172278,605.32,604.9,1.617]
[1746613096352,0.28753558,605.67,604.9,1.617]
[1746613096353,1.00172278,605.31,604.9,1.617]
[1746613096856,1.00172278,605.3,604.9,1.617]
[1746613097256,1.00172278,605.29,604.9,1.617]
[1746613097557,1.00172278,605.28,604.9,1.617]
[1746613098056,1.00172278,605.27,604.9,1.617]
[1746613098254,1.00172278,605.26,604.9,1.617]
[1746613098853,1.00172278,605.25,604.9,1.617]
[1746613099256,0.28754627,605.67,604.9,1.617]
[1746613099257,1.00172278,605.24,604.9,1.617]
[1746613099454,1.00172278,605.23,604.9,1.617]
[1746613099757,1.00172278,605.22,604.9,1.617]
[1746613100358,1.00172278,605.21,604.9,1.617]
[1746613100758,1.00172278,605.2,604.9,1.617]
[1746613101358,1.00172278,605.19,604.9,1.617]
[1746613101859,1.00172278,605.18,604.9,1.129]
[1746613102258,1.00172278,605.17,604.9,1.129]
[1746613104259,1.00172278,605.16,604.9,1.129]
[1746613104954,1.00172278,605.15,604.9,1.129]
[1746613105152,1.00172278,605.14,604.9,1.129]
[1746613105853,0.2875534,605.69,604.9,1.129]
[1746613106057,0.9982653,605.68,604.9,1.129]
[1746613106859,0.9982653,605.67,604.9,1.129]
[1746613107361,0.9982653,605.66,604.9,1.129]
[1746613107862,0.9982653,605.65,604.9,1.129]
[1746613108362,0.9982653,605.64,604.9,1.129]
[1746613108959,0.9982653,605.63,604.9,1.129]
[1746613109458,0.9982653,605.62,604.9,1.129]
[1746613109964,0.9982653,605.61,604.9,1.129]
[1746613110464,0.9982653,605.6,604.9,1.129]
[1746613110960,0.9982653,605.59,604.9,1.129]
[1746613111564,0.9982653,605.58,604.9,1.129]
[1746613112166,0.9982653,605.57,604.9,1.129]
[1746613112666,0.9982653,605.56,604.9,1.129]
[1746613112964,0.9982653,605.55,604.9,1.129]
[1746613113766,0.9982653,605.54,604.9,1.129]
[1746613113969,0.9982653,605.53,604.9,1.129]
[1746613114368,0.9982653,605.52,604.9,1.129]
[1746613114968,0.9982653,605.51,604.9,1.129]
[1746613115565,0.9982653,605.5,604.9,1.129]
[1746613116870,0.9982653,605.49,604.9,1.129]
[1746613117174,0.28750589,605.72,604.9,1.129]
[1746613117175,0.9982653,605.48,604.9,1.129]
[1746613117470,0.9982653,605.47,604.9,1.129]
[1746613118366,0.9982653,605.46,604.9,1.129]
[1746613118771,0.9982653,605.45,604.9,1.129]
[1746613119171,0.9982653,605.44,604.9,1.129]
[1746613119371,0.9982653,605.43,604.9,1.129]
[1746613119771,0.9982653,605.42,604.9,1.129]
[1746613120168,0.9982653,605.42,604.91,0.33062769]
[1746613120368,0.9982653,605.41,604.91,0.33062769]
[1746613120772,0.9982653,605.4,604.91,0.33062769]
[1746613120966,0.9982653,605.39,604.91,0.33062769]
[1746613121471,0.9982653,605.38,604.91,0.33062769]
[1746613122172,0.9982653,605.37,604.91,0.33062769]
[1746613122473,0.9982653,605.36,604.91,0.33062769]
[1746613122873,0.9982653,605.35,604.91,0.33062769]
[1746613123074,0.9982653,605.34,604.91,0.33062769]
[1746613123676,0.9982653,605.33,604.91,0.33062769]
[1746613124475,0.9982653,605.32,604.91,0.33062769]
[1746613124970,0.9982653,605.31,604.91,0.33062769]
[1746613125374,0.9982653,605.3,604.91,0.33062769]
[1746613126174,0.9982653,605.29,604.91,0.33062769]
[1746613126576,0.28749876,605.84,604.91,0.33062769]
[1746613126972,0.33004389,605.98,604.91,0.33062769]
[1746613127381,0.28742159,605.84,604.91,0.33062769]
[1746613127678,0.99677824,605.97,604.91,0.33062769]
[1746613128180,0.99677824,605.96,604.91,0.33062769]
[1746613128676,0.99677824,605.95,604.91,0.33062769]
[1746613129085,0.99677824,605.94,604.91,0.33062769]
[1746613129582,0.99677824,605.93,604.91,1.10462769]
[1746613129781,0.99677824,605.92,604.91,1.10462769]
[1746613130476,0.28742752,605.91,604.91,1.10462769]
[1746613130781,0.99677824,605.9,604.91,1.77862769]
[1746613131081,0.99677824,605.89,604.91,2.48762769]
[1746613131880,0.99677824,605.88,604.91,2.48762769]
[1746613132482,0.99677824,605.87,604.91,2.48762769]
[1746613132777,0.99677824,605.86,604.91,2.48762769]
[1746613133582,0.99677824,605.85,604.91,3.17762769]
[1746613133882,0.99677824,605.84,604.91,3.17762769]
[1746613134577,0.99677824,605.83,604.91,3.17762769]
[1746613135183,0.99677824,605.82,604.91,3.17762769]
[1746613135785,0.99677824,605.81,604.91,3.17762769]
[1746613136384,0.99677824,605.8,604.91,3.17762769]
[1746613136984,0.99677824,605.79,604.91,3.17762769]
[1746613137784,0.99677824,605.78,604.91,3.17762769]
[1746613138282,0.99677824,605.77,604.91,3.17762769]
[1746613138785,0.99677824,605.76,604.91,3.17762769]
[1746613139087,0.99677824,605.75,604.91,3.17762769]
[1746613139489,0.99677824,605.74,604.91,3.17762769]
[1746613140691,0.99677824,605.73,604.91,3.17762769]
[1746613141788,0.99677824,605.72,604.91,3.17762769]
[1746613142189,0.99677824,605.71,604.91,3.17762769]
[1746613142690,0.99677824,605.7,604.91,3.17762769]
[1746613143091,0.99677824,605.69,604.91,3.17762769]
[1746613143993,0.99677824,605.68,604.91,3.17762769]
[1746613144388,0.99677824,605.67,604.91,3.17762769]
[1746613144693,0.99677824,605.66,604.91,3.17762769]
[1746613145392,0.99677824,605.65,604.91,3.17762769]
[1746613145692,0.99677824,605.64,604.91,3.17762769]
[1746613146191,0.99677824,605.63,604.91,3.17762769]
[1746613146392,0.99677824,605.62,604.91,3.17762769]
[1746613146690,0.99677824,605.61,604.91,3.17762769]
[1746613147392,0.99677824,605.6,604.91,3.17762769]
[1746613147890,0.99677824,605.59,604.91,3.17762769]
[1746613148692,0.99677824,605.58,604.91,3.17762769]
[1746613148891,0.99677824,605.57,604.91,3.17762769]
[1746613150093,0.99677824,605.56,604.91,3.17762769]
[1746613150494,0.99677824,605.55,604.91,3.17762769]
[1746613151396,0.99677824,605.54,604.91,3.17762769]
[1746613151896,0.99677824,605.53,604.91,3.17762769]
[1746613152294,0.99677824,605.52,604.91,3.17762769]
[1746613153092,0.99677824,605.51,604.91,3.17762769]
[1746613153394,0.99677824,605.5,604.91,3.17762769]
[1746613153995,0.99677824,605.49,604.91,3.17762769]
[1746613154496,0.99677824,605.48,604.91,3.17762769]
[1746613155192,0.2874762,605.85,604.91,3.17762769]
[1746613155193,0.99677824,605.47,604.91,3.17762769]
[1746613155897,0.99677824,605.46,604.91,3.17762769]
[1746613156197,0.99677824,605.45,604.91,3.17762769]
[1746613156998,0.99677824,605.44,604.91,3.17762769]
[1746613157799,0.99677824,605.43,604.91,3.17762769]
[1746613158399,0.99677824,605.42,604.91,3.17762769]
[1746613159100,0.99677824,605.41,604.91,3.17762769]
[1746613159700,0.99677824,605.4,604.91,3.17762769]
[1746613160000,0.99677824,605.4,604.91,2.40362769]
[1746613160500,0.99677824,605.39,604.91,2.40362769]
[1746613161001,0.99677824,605.38,604.91,2.40362769]
[1746613161202,0.99677824,605.37,604.91,2.40362769]
[1746613161602,0.99677824,605.36,604.91,2.40362769]
[1746613162403,0.99677824,605.35,604.91,2.40362769]
[1746613162600,0.99677824,605.34,604.91,2.40362769]
[1746613162998,0.99677824,605.33,604.91,2.40362769]
[1746613163502,0.99677824,605.32,604.91,1.71362769]
[1746613164403,0.99677824,605.31,604.91,1.71362769]
[1746613164903,0.99677824,605.3,604.91,1.71362769]
[1746613165403,0.28749045,605.85,604.91,1.71362769]
[1746613165904,0.99890551,605.84,604.91,1.71362769]
[1746613166404,0.99890551,605.83,604.91,1.71362769]
[1746613166805,0.99890551,605.82,604.91,1.71362769]
[1746613167405,0.99890551,605.81,604.91,1.71362769]
[1746613167606,0.99890551,605.81,604.91,2.33962769]
[1746613167800,0.99890551,605.8,604.91,2.33962769]
[1746613168005,0.99890551,605.79,604.91,2.33962769]
[1746613168205,0.99890551,605.78,604.91,2.33962769]
[1746613168406,0.99890551,605.77,604.91,2.33962769]
[1746613168601,0.99890551,605.76,604.91,2.33962769]
[1746613168902,0.99890551,605.75,604.91,2.33962769]
[1746613169106,0.9990484,605.74,604.91,2.33962769]
[1746613169406,0.9990484,605.73,604.91,2.33962769]
[1746613169702,0.9990484,605.72,604.91,2.33962769]
[1746613170006,0.9990484,605.71,604.91,2.33962769]
[1746613170306,0.9990484,605.7,604.91,2.33962769]
[1746613170602,0.99922511,605.69,604.91,2.33962769]
[1746613170800,0.99922511,605.68,604.91,2.33962769]
[1746613171007,0.99922511,605.67,604.91,2.33962769]
[1746613171307,0.99922511,605.66,604.91,2.33962769]
[1746613171601,0.99922511,605.65,604.91,2.33962769]
[1746613171906,0.99922511,605.64,604.91,2.33962769]
[1746613172406,0.99922511,605.63,604.91,2.33962769]
[1746613172707,0.99922511,605.62,604.91,2.33962769]
[1746613173003,0.99922511,605.61,604.91,2.33962769]
[1746613173206,0.99922511,605.6,604.91,2.33962769]
[1746613173403,0.99922511,605.59,604.91,2.33962769]
[1746613173806,0.99922511,605.58,604.91,2.33962769]
[1746613174108,0.99922511,605.57,604.91,2.33962769]
[1746613174403,0.99922511,605.56,604.91,2.33962769]
[1746613174607,0.99922511,605.55,604.91,2.33962769]
[1746613175107,0.28747501,605.78,604.91,2.33962769]
[1746613175108,0.99922511,605.54,604.91,2.33962769]
[1746613175509,0.99922511,605.53,604.91,2.33962769]
[1746613175803,0.99922511,605.52,604.91,2.33962769]
[1746613176508,0.99922511,605.51,604.91,2.33962769]
[1746613177008,0.99922511,605.5,604.91,2.33962769]
[1746613177607,0.99922511,605.49,604.91,2.33962769]
[1746613178007,0.99922511,605.48,604.91,2.33962769]
[1746613178508,0.99922511,605.47,604.91,2.33962769]
[1746613179103,0.99922511,605.46,604.91,2.33962769]
[1746613179302,0.99922511,605.45,604.91,2.33962769]
[1746613179709,0.99922511,605.44,604.91,2.33962769]
[1746613180104,0.99922511,605.43,604.91,2.33962769]
[1746613180505,0.99922511,605.42,604.91,2.33962769]
[1746613180706,0.99922511,605.41,604.91,2.33962769]
[1746613181213,0.99922511,605.4,604.91,2.33962769]
[1746613181411,0.99922511,605.4,604.91,0.95662769]
[1746613181614,0.99922511,605.39,604.91,0.95662769]
[1746613182014,0.99922511,605.38,604.91,0.95662769]
[1746613182514,0.99922511,605.37,604.91,0.95662769]
[1746613183013,0.99922511,605.36,604.91,0.95662769]
[1746613183514,0.99922511,605.35,604.91,0.95662769]
[1746613183714,0.99922511,605.35,604.91,0.33062769]
[1746613184014,0.99922511,605.34,604.91,0.33062769]
[1746613184514,0.99922511,605.33,604.91,0.33062769]
[1746613185115,0.99922511,605.32,604.91,0.33062769]
[1746613185513,0.99922511,605.31,604.91,0.33062769]
[1746613185914,0.99922511,605.3,604.91,0.33062769]
[1746613186716,0.99922511,605.29,604.91,0.33062769]
[1746613187314,0.99922511,605.28,604.91,0.33062769]
[1746613187914,0.99922511,605.27,604.91,0.33062769]
[1746613188313,0.99922511,605.26,604.91,0.33062769]
[1746613189114,0.99922511,605.25,604.91,0.33062769]
[1746613189509,0.28752014,605.78,604.91,0.33062769]
[1746613189510,0.99922511,605.24,604.91,0.33062769]
[1746613190214,0.99922511,605.23,604.91,0.33062769]
[1746613190415,0.99922511,605.22,604.91,0.33062769]
[1746613190815,0.99922511,605.21,604.91,0.33062769]
[1746613191112,0.99922511,605.2,604.91,0.33062769]
[1746613191416,0.99922511,605.19,604.91,0.33062769]
[1746613191915,0.99922511,605.18,604.91,0.33062769]
[1746613192516,0.99922511,605.17,604.91,0.33062769]
[1746613193117,0.33004389,605.98,604.91,0.33062769]
[1746613193518,0.28739548,605.97,604.91,0.33062769]
[1746613194013,1.00180861,605.96,604.91,0.33062769]
[1746613194814,1.00180861,605.95,604.91,0.33062769]
[1746613195217,1.00180861,605.94,604.91,0.33062769]
[1746613195713,1.00178859,605.93,604.91,0.33062769]
[1746613196318,1.00178859,605.92,604.91,0.33062769]
[1746613196518,1.28924817,605.92,604.91,0.33062769]
[1746613196813,1.00178859,605.91,604.91,0.33062769]
[1746613197318,1.00178859,605.9,604.91,0.33062769]
[1746613197921,1.00178859,605.89,604.91,0.33062769]
[1746613198420,1.00178859,605.88,604.91,0.33062769]
[1746613198815,1.00178859,605.87,604.91,0.33062769]
[1746613199521,1.28927666,605.86,604.91,0.33062769]
[1746613200124,1.00178859,605.85,604.91,0.33062769]
[1746613201020,1.00178859,605.84,604.91,0.33062769]
[1746613201316,1.00178859,605.83,604.91,0.33062769]
[1746613201522,1.00178859,605.82,604.91,0.88862769]
[1746613202422,1.00178859,605.81,604.91,0.88862769]
[1746613202817,1.00178859,605.8,604.91,0.88862769]
[1746613203422,0.28748689,605.79,604.91,0.88862769]
[1746613203719,1.00178859,605.78,604.91,0.88862769]
[1746613203927,1.00178859,605.77,604.91,0.88862769]
[1746613204423,1.00178859,605.76,604.91,0.88862769]
[1746613205023,1.00178859,605.75,604.91,0.88862769]
[1746613205421,1.00178859,605.74,604.91,0.88862769]
[1746613205925,1.00178859,605.73,604.91,0.88862769]
[1746613206325,1.00178859,605.72,604.91,0.88862769]
[1746613206924,1.00178859,605.71,604.91,0.88862769]
[1746613207424,1.00178859,605.7,604.91,0.88862769]
[1746613207922,1.00178859,605.69,604.91,0.88862769]
[1746613208426,0.28749995,605.68,604.91,0.88862769]
[1746613208726,1.00178859,605.67,604.91,0.88862769]
[1746613209522,1.00178859,605.66,604.91,0.88862769]
[1746613210125,1.00178859,605.65,604.91,0.88862769]
[1746613210525,1.00178859,605.64,604.91,0.88862769]
[1746613211029,1.00178859,605.63,604.91,0.88862769]
[1746613211528,1.00178859,605.62,604.91,0.88862769]
[1746613211926,1.00178859,605.61,604.91,0.88862769]
[1746613212327,1.00178859,605.6,604.91,1.57262769]
[1746613212727,1.00178859,605.59,604.91,1.57262769]
[1746613213129,1.00178859,605.58,604.91,1.57262769]
[1746613213627,1.00178859,605.57,604.91,1.57262769]
[1746613213927,1.00178859,605.56,604.91,1.57262769]
[1746613214826,1.00178859,605.55,604.91,1.57262769]
[1746613215228,1.00178859,605.54,604.91,1.57262769]
[1746613215828,1.00178859,605.53,604.91,1.57262769]
[1746613216223,1.00178859,605.52,604.91,1.57262769]
[1746613216627,0.28751539,605.65,604.91,1.57262769]
[1746613216628,1.00178859,605.51,604.91,1.57262769]
[1746613216927,1.00178859,605.5,604.91,1.57262769]
[1746613217723,1.00178859,605.49,604.91,1.57262769]
[1746613218429,1.00178859,605.48,604.91,1.57262769]
[1746613218825,1.00178859,605.47,604.91,1.57262769]